[Event "FIDE World Junior U20-ch Girls 2025"]
[Site "Petrovac"]
[Date "2025.03.01"]
[Round "5.39"]
[White "Hernandez, Lexie Grace"]
[Black "Bochnickova, Simona"]
[Result "1/2-1/2"]
[Annotator "ChessBase"]
[ECO "D00"]
[WhiteElo "1892"]
[BlackElo "2171"]
[PlyCount "119"]
[EventDate "2025.02.23"]
[EventType "swiss"]
[EventCountry "MNE"]
[SourceTitle "playchess.com"]
[Source "ChessBase"]
[SourceQuality "1"]
[TimeControl "40/5400+30:1800+30"]

1. d4 {[%emt 0:00:03]} d5 2. Bf4 {[%emt 0:00:15]} Nf6 {[%emt 0:00:11]} 3. e3 {[%emt 0:00:03]} e6 {[%emt 0:00:04]} 4. Nf3 {[%emt 0:00:02]} c5 {[%emt 0:00:09]} 5. c3 {[%emt 0:00:04]} Bd6 {[%emt 0:00:10]} 6. Bg3 {[%emt 0:00:05]} O-O {[%emt 0:00:20]} 7. Bd3 {[%emt 0:00:02]} Qc7 {[%emt 0:00:08]} 8. Ne5 {[%emt 0:00:05]} Nbd7 {[%emt 0:00:12]} 9. f4 {[%emt 0:00:05]} Ne4 {[%emt 0:00:08]} 10. Bxe4 {[%emt 0:03:34]} dxe4 {[%emt 0:00:15]} 11. Nd2 {[%emt 0:00:09]} f5 {[%emt 0:01:06]} 12. Ndc4 {[%emt 0:02:35]} Be7 {[%emt 0:10:25]} 13. d5 {[%emt 0:01:09]} Nxe5 {[%emt 0:07:30]} 14. fxe5 {[%emt 0:00:12]} exd5 {[%emt 0:01:39]} 15. Qxd5+ {[%emt 0:00:05]} Kh8 {[%emt 0:00:06]} 16. O-O-O {[%emt 0:01:36]} Qc6 {[%emt 0:15:07]} 17. Nd6 {[%emt 0:04:08]} Qxd5 18. Rxd5 {[%emt 0:00:05]} Be6 {[%emt 0:10:49]} 19. Rd2 {[%emt 0:05:22]} b6 {[%emt 0:03:42]} 20. b3 {[%emt 0:04:18]} a5 {[%emt 0:00:20]} 21. c4 {[%emt 0:02:11]} a4 {[%emt 0:05:14]} 22. Kb2 {[%emt 0:00:55]} Ra5 {[%emt 0:10:54]} 23. Nb5 {[%emt 0:01:34]} axb3 {[%emt 0:01:22]} 24. axb3 {[%emt 0:00:42]} g5 {[%emt 0:04:56]} 25. Rf1 {[%emt 0:03:15]} Rfa8 {[%emt 0:04:30]} 26. Nc7 {[%emt 0:15:27]} Ra2+ {[%emt 0:00:27]} 27. Kc3 {[%emt 0:00:08]} Rxd2 {[%emt 0:00:07]} 28. Kxd2 {[%emt 0:00:09]} Ra2+ {[%emt 0:01:03]} 29. Kc3 {[%emt 0:00:26]} Bc8 {[%emt 0:04:43]} 30. Nd5 {[%emt 0:03:07]} Bd8 {[%emt 0:02:18]} 31. b4 {[%emt 0:02:10]} Ra3+ {[%emt 0:01:32]} 32. Kb2 {[%emt 0:00:02]} Rd3 {[%emt 0:02:18]} 33. bxc5 {[%emt 0:06:34]} bxc5 {[%emt 0:00:13]} 34. Ra1 {[%emt 0:01:16]} Bb7 {[%emt 0:10:20]} 35. Ra7 {[%emt 0:00:59]} Bxd5 {[%emt 0:00:05]} 36. cxd5 {[%emt 0:00:02]} Rxd5 {[%emt 0:00:11]} 37. e6 {[%emt 0:00:14]} Bf6+ {[%emt 0:00:20]} 38. Kc2 {[%emt 0:00:12]} Kg8 {[%emt 0:02:13]} 39. Rf7 {[%emt 0:01:03]} Bd8 {[%emt 0:01:33]} 40. h4 {[%emt 0:00:26]} h6 {[%emt 0:01:34]} 41. hxg5 {[%emt 0:31:08]} Bxg5 {[%emt 0:06:34]} 42. Bc7 {[%emt 0:00:00]} Bxe3 {[%emt 0:02:14]} 43. Rd7 {[%emt 0:00:00]} Rd4 {[%emt 0:04:35]} 44. Rf7 {[%emt 0:00:00]} Rd5 {[%emt 0:00:31]} 45. Rd7 {[%emt 0:00:00]} Rxd7 {[%emt 0:00:04]} 46. exd7 {[%emt 0:00:00]} Bg5 {[%emt 0:00:06]} 47. d8=Q+ {[%emt 0:00:00]} Bxd8 {[%emt 0:00:04]} 48. Bxd8 {[%emt 0:00:00]} Kf7 {[%emt 0:00:27]} 49. Bb6 {[%emt 0:00:00]} Kg6 {[%emt 0:08:40]} 50. Bxc5 {[%emt 0:00:00]} Kg5 {[%emt 0:00:05]} 51. Kd2 {[%emt 0:00:00]} Kg4 {[%emt 0:00:58]} 52. Bd6 {[%emt 0:00:00]} f4 {[%emt 0:00:14]} 53. Ke2 {[%emt 0:00:00]} Kg3 {[%emt 0:00:16]} 54. Bc7 {[%emt 0:00:00]} h5 {[%emt 0:00:50]} 55. Bd6 {[%emt 0:00:00]} h4 {[%emt 0:00:03]} 56. Bc7 {[%emt 0:00:00]} Kxg2 {[%emt 0:01:17]} 57. Bxf4 {[%emt 0:00:00]} h3 {[%emt 0:00:04]} 58. Ke3 {[%emt 0:00:00]} h2 {[%emt 0:00:06]} 59. Bxh2 {[%emt 0:00:00]} Kxh2 {[%emt 0:00:06]} 60. Kxe4 {[%emt 0:00:00]} 1/2-1/2

[Event "FIDE World Junior U20-ch Girls 2025"]
[Site "Petrovac"]
[Date "2025.03.01"]
[Round "5.40"]
[White "Peglau, Dora"]
[Black "Mickunaite, Agne"]
[Result "1-0"]
[Annotator "NA"]
[ECO "E92"]
[WhiteElo "2134"]
[BlackElo "1918"]
[PlyCount "117"]
[EventDate "2025.02.23"]
[EventType "swiss"]
[EventCountry "MNE"]
[SourceTitle "playchess.com"]
[Source "ChessBase"]
[SourceQuality "1"]
[TimeControl "40/5400+30:1800+30"]

1. d4 {[%emt 0:00:03]} Nf6 {[%emt 0:00:15]} 2. c4 {[%emt 0:00:08]} g6 {[%emt 0:00:04]} 3. Nc3 {[%emt 0:00:05]} Bg7 {[%emt 0:00:12]} 4. e4 {[%emt 0:00:08]} d6 {[%emt 0:00:07]} 5. Nf3 {[%emt 0:00:06]} O-O {[%emt 0:00:11]} 6. Be3 {[%emt 0:00:23]} e5 {[%emt 0:01:21]} 7. Be2 {[%emt 0:00:36]} Nc6 {[%emt 0:01:17]} 8. d5 {[%emt 0:01:32]} Ne7 {[%emt 0:00:12]} 9. Nd2 {[%emt 0:02:19]} Nd7 {[%emt 0:04:20]} 10. f3 {[%emt 0:02:09]} f5 {[%emt 0:01:38]} 11. Qc2 {[%emt 0:00:58]} f4 {[%emt 0:02:41]} 12. Bf2 {[%emt 0:00:09]} a5 {[%emt 0:01:41]} 13. O-O-O {[%emt 0:04:43]} Nc5 {[%emt 0:04:11]} 14. g4 {[%emt 0:03:11]} h6 {[%emt 0:02:04]} 15. h4 {[%emt 0:05:33]} b6 {[%emt 0:04:35]} 16. g5 {[%emt 0:05:08]} h5 {[%emt 0:01:41]} 17. Bf1 {[%emt 0:01:52]} Bd7 {[%emt 0:05:04]} 18. Bh3 {[%emt 0:02:27]} Bxh3 {[%emt 0:00:15]} 19. Rxh3 {[%emt 0:00:02]} Qd7 {[%emt 0:00:09]} 20. Rhh1 {[%emt 0:00:40]} Rfb8 {[%emt 0:04:15]} 21. Ndb1 {[%emt 0:05:34]} Nc8 {[%emt 0:03:04]} 22. Na3 {[%emt 0:01:43]} Bf8 {[%emt 0:01:49]} 23. Kd2 {[%emt 0:04:36]} Be7 {[%emt 0:02:17]} 24. Ke2 {[%emt 0:03:42]} Ra6 {[%emt 0:01:31]} 25. Kf1 {[%emt 0:04:07]} Kf7 {[%emt 0:01:50]} 26. Kg2 {[%emt 0:01:28]} Na7 {[%emt 0:01:56]} 27. b3 {[%emt 0:04:17]} Ra8 {[%emt 0:01:00]} 28. Rc1 {[%emt 0:09:14]} Kg7 {[%emt 0:01:50]} 29. Rhd1 {[%emt 0:03:35]} Kf7 {[%emt 0:00:27]} 30. Nab5 {[%emt 0:06:13]} Kg7 {[%emt 0:02:19]} 31. a3 {[%emt 0:03:05]} Nxb5 {[%emt 0:05:13]} 32. Nxb5 {[%emt 0:02:26]} Nb7 {[%emt 0:07:13]} 33. Qb2 {[%emt 0:03:42]} Bd8 {[%emt 0:02:54]} 34. Ra1 {[%emt 0:01:50]} Kf7 {[%emt 0:03:35]} 35. b4 {[%emt 0:02:36]} Ke8 {[%emt 0:06:50]} 36. Qc3 {[%emt 0:05:09]} Ke7 {[%emt 0:03:26]} 37. Re1 {[%emt 0:03:50]} Ke8 {[%emt 0:03:07]} 38. Qb2 {[%emt 0:00:56]} Ke7 {[%emt 0:06:19]} 39. Nc3 {[%emt 0:08:10]} Qc8 {[%emt 0:04:20]} 40. Ne2 {[%emt 0:01:10]} axb4 {[%emt 0:00:52]} 41. axb4 {[%emt 0:08:57]} Kf7 {[%emt 0:02:06]} 42. c5 {[%emt 0:01:31]} bxc5 {[%emt 0:08:04]} 43. bxc5 {[%emt 0:00:42]} Ra5 {[%emt 0:07:56]} 44. c6 {[%emt 0:04:23]} Nc5 {[%emt 0:01:00]} 45. Bxc5 {[%emt 0:00:07]} Rxc5 {[%emt 0:00:10]} 46. Qb7 {[%emt 0:03:43]} Qxb7 {[%emt 0:07:54]} 47. cxb7 {[%emt 0:00:03]} Rb8 {[%emt 0:00:26]} 48. Ra8 {[%emt 0:02:00]} Rxb7 {[%emt 0:00:10]} 49. Rxd8 {[%emt 0:00:05]} Rb2 {[%emt 0:00:17]} 50. Ra8 {[%emt 0:00:58]} Rcc2 {[%emt 0:00:31]} 51. Kf1 {[%emt 0:00:16]} Rb3 {[%emt 0:01:33]} 52. Kf2 {[%emt 0:00:28]} Rbb2 {[%emt 0:00:04]} 53. Ra6 {[%emt 0:00:49]} Ke7 {[%emt 0:05:29]} 54. Rc6 {[%emt 0:01:16]} Rxc6 {[%emt 0:00:19]} 55. dxc6 {[%emt 0:00:01]} Ke6 {[%emt 0:00:13]} 56. Rd1 {[%emt 0:03:06]} Rc2 {[%emt 0:00:19]} 57. Rc1 {[%emt 0:00:09]} Rb2 {[%emt 0:00:05]} 58. Ke1 {[%emt 0:01:11]} Rb3 {[%emt 0:00:14]} 59. Nc3 {[%emt 0:00:28]} 1-0

[Event "FIDE World Junior U20-ch Girls 2025"]
[Site "Petrovac"]
[Date "2025.03.01"]
[Round "5.41"]
[White "Shuqja, Klean"]
[Black "Djukic, Katarina"]
[Result "1-0"]
[Annotator "NA"]
[ECO "B52"]
[WhiteElo "2049"]
[BlackElo "1786"]
[PlyCount "75"]
[EventDate "2025.02.23"]
[EventType "swiss"]
[EventCountry "MNE"]
[SourceTitle "playchess.com"]
[Source "ChessBase"]
[SourceQuality "1"]
[TimeControl "40/5400+30:1800+30"]

1. e4 {[%emt 0:05:13]} c5 {[%emt 0:00:11]} 2. Nf3 {[%emt 0:00:37]} d6 {[%emt 0:00:10]} 3. Bb5+ {[%emt 0:00:00]} Bd7 {[%emt 0:00:05]} 4. Bxd7+ {[%emt 0:00:00]} Qxd7 {[%emt 0:00:05]} 5. O-O {[%emt 0:02:17]} Nc6 {[%emt 0:00:09]} 6. c4 {[%emt 0:01:19]} Nf6 {[%emt 0:00:13]} 7. Nc3 {[%emt 0:00:18]} g6 {[%emt 0:00:19]} 8. d4 {[%emt 0:01:45]} cxd4 {[%emt 0:00:09]} 9. Nxd4 {[%emt 0:00:01]} Bg7 {[%emt 0:00:13]} 10. Re1 {[%emt 0:09:34]} O-O {[%emt 0:01:56]} 11. Nc2 {[%emt 0:06:55]} a6 {[%emt 0:03:35]} 12. f3 {[%emt 0:01:41]} Na5 {[%emt 0:05:09]} 13. Qd3 {[%emt 0:03:55]} Rfc8 {[%emt 0:04:43]} 14. Ne3 {[%emt 0:13:00]} Rab8 {[%emt 0:05:42]} 15. Bd2 {[%emt 0:08:48]} b5 {[%emt 0:07:37]} 16. cxb5 {[%emt 0:02:57]} axb5 {[%emt 0:00:15]} 17. Rab1 {[%emt 0:04:26]} b4 {[%emt 0:10:14]} 18. Ncd5 {[%emt 0:01:37]} Nc6 {[%emt 0:01:34]} 19. Nxf6+ {[%emt 0:10:19]} Bxf6 {[%emt 0:02:10]} 20. Nd5 {[%emt 0:01:05]} Bg7 {[%emt 0:03:19]} 21. Kh1 {[%emt 0:05:12]} e6 {[%emt 0:03:48]} 22. Ne3 {[%emt 0:01:58]} Ne5 {[%emt 0:01:51]} 23. Qb3 {[%emt 0:01:37]} Qb5 {[%emt 0:05:17]} 24. Rec1 {[%emt 0:03:49]} Rc5 {[%emt 0:17:22]} 25. Nc2 {[%emt 0:09:03]} Nd3 {[%emt 0:21:40]} 26. Rf1 {[%emt 0:00:13]} Nxb2 {[%emt 0:00:17]} 27. Nxb4 {[%emt 0:02:24]} Nc4 {[%emt 0:03:12]} 28. Bf4 {[%emt 0:02:23]} e5 {[%emt 0:01:16]} 29. Be3 {[%emt 0:01:02]} Nxe3 {[%emt 0:00:52]} 30. Qxe3 {[%emt 0:00:03]} Rc4 {[%emt 0:01:21]} 31. a3 {[%emt 0:00:22]} d5 {[%emt 0:00:35]} 32. exd5 {[%emt 0:00:24]} Bf8 {[%emt 0:00:12]} 33. Qxe5 {[%emt 0:01:44]} Bxb4 {[%emt 0:00:12]} 34. axb4 {[%emt 0:00:03]} Rxb4 {[%emt 0:00:17]} 35. Rbd1 {[%emt 0:00:26]} Rd8 {[%emt 0:01:13]} 36. h3 {[%emt 0:00:10]} Rb2 {[%emt 0:00:27]} 37. Rfe1 {[%emt 0:00:27]} Qc5 {[%emt 0:00:36]} 38. Qxb2 {[%emt 0:00:09]} 1-0

[Event "FIDE World Junior U20-ch Girls 2025"]
[Site "Petrovac"]
[Date "2025.03.01"]
[Round "5.42"]
[White "Huseynova, Lala"]
[Black "Popovic, Mateja"]
[Result "1-0"]
[Annotator "NA"]
[ECO "B47"]
[WhiteElo "2032"]
[BlackElo "1917"]
[PlyCount "93"]
[EventDate "2025.02.23"]
[EventType "swiss"]
[EventCountry "MNE"]
[SourceTitle "playchess.com"]
[Source "ChessBase"]
[SourceQuality "1"]
[TimeControl "40/5400+30:1800+30"]

1. e4 {[%emt 0:00:02]} c5 {[%emt 0:01:06]} 2. Nf3 {[%emt 0:00:05]} e6 {[%emt 0:00:07]} 3. d4 {[%emt 0:00:03]} cxd4 {[%emt 0:00:12]} 4. Nxd4 {[%emt 0:00:02]} Nc6 {[%emt 0:00:06]} 5. Nc3 {[%emt 0:00:06]} Qc7 {[%emt 0:00:55]} 6. g3 {[%emt 0:00:10]} a6 {[%emt 0:02:50]} 7. Bg2 {[%emt 0:00:10]} Nf6 {[%emt 0:04:43]} 8. O-O {[%emt 0:00:09]} Be7 {[%emt 0:03:44]} 9. Re1 {[%emt 0:01:16]} O-O {[%emt 0:01:17]} 10. Nxc6 {[%emt 0:04:41]} bxc6 {[%emt 0:01:00]} 11. e5 {[%emt 0:00:28]} Nd5 {[%emt 0:02:02]} 12. Na4 {[%emt 0:09:16]} Rd8 {[%emt 0:03:07]} 13. Bd2 {[%emt 0:04:21]} a5 {[%emt 0:05:37]} 14. a3 {[%emt 0:13:55]} Bb7 {[%emt 0:06:36]} 15. Rc1 {[%emt 0:08:07]} Nb6 {[%emt 0:03:31]} 16. c4 {[%emt 0:02:38]} c5 {[%emt 0:03:01]} 17. Qb3 {[%emt 0:06:57]} Nxa4 {[%emt 0:16:40]} 18. Bxb7 {[%emt 0:03:28]} Rdb8 {[%emt 0:00:17]} 19. Qxa4 {[%emt 0:00:50]} Rxb7 {[%emt 0:00:10]} 20. Bc3 {[%emt 0:01:25]} d6 {[%emt 0:05:24]} 21. Rcd1 {[%emt 0:06:41]} Qd7 {[%emt 0:00:30]} 22. Qxd7 {[%emt 0:02:10]} Rxd7 {[%emt 0:00:04]} 23. exd6 {[%emt 0:00:16]} Rxd6 {[%emt 0:01:15]} 24. Rxd6 {[%emt 0:01:37]} Bxd6 {[%emt 0:00:11]} 25. Rd1 {[%emt 0:00:04]} Be7 {[%emt 0:02:05]} 26. Rd7 {[%emt 0:00:43]} Bd8 {[%emt 0:00:50]} 27. a4 {[%emt 0:03:43]} f6 {[%emt 0:04:13]} 28. Rb7 {[%emt 0:00:49]} Kf8 {[%emt 0:02:50]} 29. Rb5 {[%emt 0:01:11]} Ke7 {[%emt 0:00:55]} 30. Rb7+ {[%emt 0:03:34]} Kf8 {[%emt 0:00:14]} 31. Rb5 {[%emt 0:02:40]} Ke7 {[%emt 0:00:08]} 32. Rxc5 {[%emt 0:00:03]} Kd6 {[%emt 0:00:07]} 33. Rb5 {[%emt 0:01:27]} h6 {[%emt 0:04:16]} 34. Kf1 {[%emt 0:01:13]} e5 {[%emt 0:00:58]} 35. Ke2 {[%emt 0:02:13]} Kc6 {[%emt 0:01:18]} 36. h4 {[%emt 0:03:42]} Bc7 {[%emt 0:03:03]} 37. h5 {[%emt 0:01:31]} Kd7 {[%emt 0:01:58]} 38. Kf3 {[%emt 0:05:04]} Ra7 {[%emt 0:03:16]} 39. Ke4 {[%emt 0:01:23]} Ke6 {[%emt 0:00:12]} 40. g4 {[%emt 0:02:16]} Ra6 {[%emt 0:01:56]} 41. Rb7 {[%emt 0:31:23]} Rc6 {[%emt 0:30:32]} 42. b3 {[%emt 0:00:38]} Rc5 {[%emt 0:01:19]} 43. f3 {[%emt 0:05:04]} Rc6 {[%emt 0:00:33]} 44. Ra7 {[%emt 0:03:24]} Rc5 {[%emt 0:00:05]} 45. Bd2 {[%emt 0:00:00]} Kd6 {[%emt 0:00:00]} 46. Ra6+ {[%emt 0:00:00]} Ke7 {[%emt 0:00:00]} 47. Be3 {[%emt 0:00:00]} 1-0

[Event "FIDE World Junior U20-ch Girls 2025"]
[Site "Petrovac"]
[Date "2025.03.01"]
[Round "5.43"]
[White "Blauhut, Anna"]
[Black "Karacsonyi, Luca"]
[Result "1/2-1/2"]
[Annotator "NA"]
[ECO "B32"]
[WhiteElo "1837"]
[BlackElo "2026"]
[PlyCount "109"]
[EventDate "2025.02.23"]
[EventType "swiss"]
[EventCountry "MNE"]
[SourceTitle "playchess.com"]
[Source "ChessBase"]
[SourceQuality "1"]
[TimeControl "40/5400+30:1800+30"]

1. e4 {[%emt 0:00:03]} c5 {[%emt 0:01:34]} 2. Nf3 {[%emt 0:00:15]} a6 {[%emt 0:00:25]} 3. c4 {[%emt 0:00:57]} Nc6 {[%emt 0:00:19]} 4. d4 {[%emt 0:00:41]} cxd4 {[%emt 0:00:16]} 5. Nxd4 {[%emt 0:00:08]} e5 {[%emt 0:00:16]} 6. Nf5 {[%emt 0:01:10]} d5 {[%emt 0:00:12]} 7. cxd5 {[%emt 0:00:45]} Bxf5 {[%emt 0:00:11]} 8. exf5 {[%emt 0:00:13]} Nd4 {[%emt 0:00:06]} 9. Nc3 {[%emt 0:01:50]} Nf6 {[%emt 0:01:39]} 10. Bd3 {[%emt 0:00:53]} Be7 {[%emt 0:00:18]} 11. O-O {[%emt 0:01:30]} O-O {[%emt 0:00:14]} 12. Re1 {[%emt 0:00:59]} Nxd5 {[%emt 0:00:30]} 13. Nxd5 {[%emt 0:01:08]} Qxd5 {[%emt 0:00:41]} 14. Qg4 {[%emt 0:01:29]} Bf6 {[%emt 0:02:39]} 15. Bh6 {[%emt 0:02:44]} Qd7 {[%emt 0:03:35]} 16. h4 {[%emt 0:00:40]} Kh8 {[%emt 0:03:18]} 17. Bg5 {[%emt 0:01:24]} Rg8 {[%emt 0:11:02]} 18. Rad1 {[%emt 0:05:14]} Rac8 {[%emt 0:11:36]} 19. Re3 {[%emt 0:12:08]} Qd6 {[%emt 0:13:53]} 20. Rh3 {[%emt 0:18:35]} g6 {[%emt 0:05:49]} 21. fxg6 {[%emt 0:01:22]} fxg6 {[%emt 0:01:44]} 22. h5 {[%emt 0:02:49]} Bxg5 {[%emt 0:10:52]} 23. hxg6 {[%emt 0:01:51]} Rc7 {[%emt 0:03:46]} 24. Qxg5 {[%emt 0:00:58]} e4 {[%emt 0:01:21]} 25. Qh5 {[%emt 0:02:27]} Rxg6 {[%emt 0:20:23]} 26. Bxe4 {[%emt 0:01:03]} Rg5 {[%emt 0:02:46]} 27. Qe8+ {[%emt 0:01:00]} Rg8 {[%emt 0:00:04]} 28. Qa4 {[%emt 0:00:10]} Ne2+ {[%emt 0:01:28]} 29. Kh1 {[%emt 0:01:14]} Qf6 {[%emt 0:01:40]} 30. Bf3 {[%emt 0:05:34]} Nf4 {[%emt 0:00:36]} 31. Rh2 {[%emt 0:00:05]} b5 {[%emt 0:01:11]} 32. Qe4 {[%emt 0:03:16]} Re7 {[%emt 0:00:11]} 33. Qc2 {[%emt 0:00:13]} Qe5 {[%emt 0:01:00]} 34. Rh4 {[%emt 0:07:57]} Qf6 {[%emt 0:00:49]} 35. Rg4 {[%emt 0:02:35]} Rxg4 {[%emt 0:00:40]} 36. Bxg4 {[%emt 0:00:02]} Qh4+ {[%emt 0:00:39]} 37. Bh3 {[%emt 0:00:45]} Nxh3 {[%emt 0:00:21]} 38. Qc3+ {[%emt 0:02:39]} Kg8 {[%emt 0:00:05]} 39. gxh3 {[%emt 0:03:03]} Qe4+ {[%emt 0:00:53]} 40. Kh2 {[%emt 0:00:07]} Qf4+ {[%emt 0:00:39]} 41. Qg3+ {[%emt 0:30:08]} Qxg3+ {[%emt 0:30:12]} 42. Kxg3 {[%emt 0:00:05]} Re2 {[%emt 0:00:00]} 43. Rd8+ {[%emt 0:00:00]} Kg7 {[%emt 0:00:00]} 44. Ra8 {[%emt 0:00:00]} Rxb2 {[%emt 0:00:00]} 45. Rxa6 {[%emt 0:00:00]} b4 {[%emt 0:00:00]} 46. f4 {[%emt 0:00:00]} b3 {[%emt 0:00:00]} 47. axb3 {[%emt 0:00:00]} Rxb3+ {[%emt 0:00:00]} 48. Kg4 {[%emt 0:00:00]} h5+ {[%emt 0:00:00]} 49. Kxh5 {[%emt 0:00:00]} Rxh3+ {[%emt 0:00:00]} 50. Kg5 {[%emt 0:00:00]} Rb3 {[%emt 0:00:00]} 51. Ra7+ {[%emt 0:00:00]} Kf8 {[%emt 0:00:00]} 52. f5 {[%emt 0:00:00]} Rb6 {[%emt 0:00:00]} 53. Ra5 {[%emt 0:00:00]} Rc6 {[%emt 0:00:00]} 54. Ra8+ {[%emt 0:00:00]} Kf7 {[%emt 0:00:00]} 55. Ra7+ {[%emt 0:00:00]} 1/2-1/2

[Event "FIDE World Junior U20-ch Girls 2025"]
[Site "Petrovac"]
[Date "2025.03.01"]
[Round "5.44"]
[White "Romany, Joy"]
[Black "Ajradinoska, Indzi"]
[Result "1-0"]
[Annotator "NA"]
[ECO "E06"]
[WhiteElo "2025"]
[BlackElo "1761"]
[PlyCount "89"]
[EventDate "2025.02.23"]
[EventType "swiss"]
[EventCountry "MNE"]
[SourceTitle "playchess.com"]
[Source "ChessBase"]
[SourceQuality "1"]
[TimeControl "40/5400+30:1800+30"]

1. d4 {[%emt 0:00:25]} e6 {[%emt 0:00:13]} 2. c4 {[%emt 0:00:05]} Nf6 {[%emt 0:00:06]} 3. g3 {[%emt 0:00:06]} d5 {[%emt 0:00:09]} 4. Bg2 {[%emt 0:00:05]} Be7 {[%emt 0:00:07]} 5. Nf3 {[%emt 0:00:07]} O-O {[%emt 0:00:08]} 6. O-O {[%emt 0:00:04]} c6 {[%emt 0:00:17]} 7. Qc2 {[%emt 0:00:13]} b6 {[%emt 0:00:45]} 8. Nbd2 {[%emt 0:01:19]} Bb7 {[%emt 0:02:01]} 9. Rd1 {[%emt 0:02:06]} Na6 {[%emt 0:04:20]} 10. e4 {[%emt 0:06:08]} dxe4 11. Nxe4 {[%emt 0:00:09]} Nb4 {[%emt 0:18:37]} 12. Qe2 {[%emt 0:04:59]} b5 {[%emt 0:04:56]} 13. a3 {[%emt 0:13:27]} Na6 {[%emt 0:01:36]} 14. Nxf6+ Bxf6 {[%emt 0:01:00]} 15. cxb5 cxb5 {[%emt 0:07:29]} 16. Qxb5 {[%emt 0:00:52]} Qe7 {[%emt 0:00:26]} 17. Bf4 {[%emt 0:03:32]} Rfd8 {[%emt 0:02:16]} 18. Rac1 {[%emt 0:08:45]} Rd7 {[%emt 0:03:15]} 19. Ne5 {[%emt 0:06:22]} Bxe5 {[%emt 0:01:11]} 20. Bxe5 {[%emt 0:00:13]} Bxg2 21. Kxg2 {[%emt 0:00:06]} f6 {[%emt 0:06:46]} 22. Bf4 {[%emt 0:02:24]} e5 23. dxe5 {[%emt 0:00:10]} Rxd1 24. Rxd1 {[%emt 0:00:01]} Nc5 {[%emt 0:05:16]} 25. exf6 {[%emt 0:01:31]} gxf6 {[%emt 0:01:00]} 26. Kg1 {[%emt 0:06:31]} a6 {[%emt 0:02:30]} 27. Qc6 {[%emt 0:12:23]} Re8 {[%emt 0:00:30]} 28. Qd5+ {[%emt 0:09:50]} Ne6 {[%emt 0:00:43]} 29. Re1 {[%emt 0:03:27]} Kh8 {[%emt 0:00:32]} 30. Bh6 {[%emt 0:02:54]} Qf7 {[%emt 0:01:03]} 31. Qf5 {[%emt 0:04:52]} Kg8 {[%emt 0:00:59]} 32. Re4 {[%emt 0:05:24]} Kh8 {[%emt 0:04:16]} 33. Rg4 {[%emt 0:03:27]} Rd8 {[%emt 0:00:39]} 34. Re4 {[%emt 0:01:10]} Nd4 {[%emt 0:02:51]} 35. Qf4 {[%emt 0:00:53]} Ne6 {[%emt 0:00:10]} 36. Qe3 {[%emt 0:00:28]} Re8 {[%emt 0:02:00]} 37. Bf4 {[%emt 0:01:57]} Qd7 {[%emt 0:00:44]} 38. Qe2 {[%emt 0:01:07]} a5 {[%emt 0:00:36]} 39. Bd2 {[%emt 0:00:28]} a4 {[%emt 0:00:53]} 40. Bc3 {[%emt 0:00:08]} Kg7 {[%emt 0:00:20]} 41. Qg4+ {[%emt 0:30:58]} Kf7 {[%emt 0:31:36]} 42. Qh5+ {[%emt 0:00:11]} Kg7 {[%emt 0:02:11]} 43. Rg4+ {[%emt 0:00:09]} Kf8 {[%emt 0:00:27]} 44. Qh6+ {[%emt 0:01:37]} Ng7 {[%emt 0:00:58]} 45. Qxf6+ {[%emt 0:00:07]} 1-0

[Event "FIDE World Junior U20-ch Girls 2025"]
[Site "Petrovac"]
[Date "2025.03.01"]
[Round "5.45"]
[White "Zelbova, Lada"]
[Black "Djendjinovic, Ines"]
[Result "1-0"]
[Annotator "NA"]
[ECO "D00"]
[WhiteElo "1994"]
[BlackElo "1841"]
[PlyCount "111"]
[EventDate "2025.02.23"]
[EventType "swiss"]
[EventCountry "MNE"]
[SourceTitle "playchess.com"]
[Source "ChessBase"]
[SourceQuality "1"]
[TimeControl "40/5400+30:1800+30"]

1. d4 {[%emt 0:00:04]} d5 {[%emt 0:00:04]} 2. Bf4 {[%emt 0:00:36]} e6 {[%emt 0:00:06]} 3. e3 {[%emt 0:00:23]} c5 {[%emt 0:00:04]} 4. Nd2 {[%emt 0:01:23]} cxd4 {[%emt 0:00:13]} 5. exd4 {[%emt 0:00:49]} Nc6 {[%emt 0:00:02]} 6. c3 {[%emt 0:02:42]} Bd6 {[%emt 0:00:03]} 7. Bxd6 {[%emt 0:01:04]} Qxd6 {[%emt 0:00:03]} 8. Ngf3 {[%emt 0:01:15]} Nge7 {[%emt 0:00:05]} 9. Bd3 {[%emt 0:03:24]} O-O {[%emt 0:00:22]} 10. O-O {[%emt 0:01:44]} Bd7 {[%emt 0:00:03]} 11. Re1 {[%emt 0:03:01]} f6 {[%emt 0:00:09]} 12. Qc2 {[%emt 0:06:36]} Kh8 {[%emt 0:00:13]} 13. Rad1 {[%emt 0:02:34]} e5 {[%emt 0:03:12]} 14. dxe5 fxe5 {[%emt 0:03:49]} 15. Bb5 {[%emt 0:24:46]} Qf6 {[%emt 0:11:08]} 16. Nf1 {[%emt 0:07:57]} e4 {[%emt 0:03:42]} 17. Bxc6 {[%emt 0:00:25]} Nxc6 {[%emt 0:00:48]} 18. Nd4 {[%emt 0:01:22]} Ne5 {[%emt 0:01:57]} 19. Ne3 {[%emt 0:00:44]} Bc6 {[%emt 0:03:02]} 20. Rf1 {[%emt 0:00:52]} Nd3 {[%emt 0:21:53]} 21. Qd2 {[%emt 0:03:35]} Qh6 {[%emt 0:08:54]} 22. Nef5 {[%emt 0:03:14]} Qxd2 {[%emt 0:02:15]} 23. Rxd2 {[%emt 0:00:07]} Rf6 {[%emt 0:00:49]} 24. Ne3 {[%emt 0:02:23]} Raf8 {[%emt 0:00:29]} 25. Ng4 {[%emt 0:03:37]} Rd6 {[%emt 0:01:46]} 26. Ne3 {[%emt 0:00:21]} Bd7 {[%emt 0:01:46]} 27. f3 {[%emt 0:03:44]} g6 {[%emt 0:04:56]} 28. fxe4 {[%emt 0:06:04]} Rxf1+ {[%emt 0:00:05]} 29. Kxf1 {[%emt 0:00:30]} dxe4 {[%emt 0:00:05]} 30. Kg1 {[%emt 0:01:24]} b5 {[%emt 0:03:16]} 31. a3 {[%emt 0:02:16]} Nc5 {[%emt 0:01:50]} 32. h3 {[%emt 0:02:26]} a5 {[%emt 0:02:15]} 33. Re2 {[%emt 0:00:34]} b4 {[%emt 0:02:18]} 34. Nc4 {[%emt 0:00:34]} Ra6 {[%emt 0:01:15]} 35. cxb4 {[%emt 0:01:17]} axb4 {[%emt 0:00:10]} 36. axb4 {[%emt 0:00:23]} Nd3 {[%emt 0:00:51]} 37. Rxe4 {[%emt 0:01:11]} Nxb4 {[%emt 0:00:52]} 38. Re7 {[%emt 0:00:26]} Bf5 {[%emt 0:02:17]} 39. Nxf5 {[%emt 0:01:07]} gxf5 {[%emt 0:00:05]} 40. Rf7 {[%emt 0:00:35]} Rc6 {[%emt 0:00:28]} 41. Ne3 {[%emt 0:30:24]} f4 {[%emt 0:32:36]} 42. Rxf4 {[%emt 0:01:00]} Nd3 {[%emt 0:00:05]} 43. Rf8+ {[%emt 0:00:31]} Kg7 {[%emt 0:00:16]} 44. Rb8 {[%emt 0:00:18]} Rc1+ {[%emt 0:00:42]} 45. Kh2 {[%emt 0:00:07]} Rb1 {[%emt 0:00:06]} 46. Nc4 {[%emt 0:00:55]} Rc1 {[%emt 0:00:11]} 47. b3 {[%emt 0:03:55]} Nc5 {[%emt 0:00:16]} 48. Ne5 {[%emt 0:02:57]} Rb1 {[%emt 0:02:20]} 49. b4 {[%emt 0:01:49]} Ne4 {[%emt 0:02:49]} 50. b5 {[%emt 0:03:13]} h5 {[%emt 0:00:15]} 51. h4 {[%emt 0:02:31]} Nd6 {[%emt 0:00:50]} 52. b6 {[%emt 0:00:36]} Rb3 {[%emt 0:00:17]} 53. Nc6 {[%emt 0:00:00]} Nc4 {[%emt 0:00:00]} 54. b7 {[%emt 0:00:00]} Nd6 {[%emt 0:00:00]} 55. Na5 {[%emt 0:00:00]} Rb4 {[%emt 0:00:00]} 56. g3 {[%emt 0:00:00]} 1-0